bitfinex-derivatives/quotes_SOLF0:USTF0_20250411
["timestamp","ask_amount","ask_price","bid_price","bid_amount"]
[1744351830916,10.6274,117.15,117.11,8.544]
[1744351831317,10.6274,117.15,117.1,10.62421614]
[1744351831517,10.6274,117.15,117.11,8.7950898]
[1744351831821,10.6274,117.15,117.12,8.7950898]
[1744351832123,10.68695117,117.15,117.12,8.84920846]
[1744351832624,10.68695117,117.15,117.12,0.05411866]
[1744351832827,8.5427,117.14,117.12,0.05411866]
[1744351833032,33.04,117.14,117.12,0.05411866]
[1744351833421,8.5433,117.13,117.12,0.05411866]
[1744351834928,8.544,117.12,117.11,8.79787931]
[1744351835417,33.04,117.14,117.11,8.79787931]
[1744351835622,33.04,117.14,117.07,10.62421614]
[1744351835816,33.04,117.14,117.08,8.40892992]
[1744351836024,8.60349924,117.12,117.09,17.40903447]
[1744351836429,8.5448,117.11,117.09,8.86353447]
[1744351836628,8.5448,117.11,117.09,0.0604566]
[1744351838335,0.05939924,117.12,117.09,0.0604566]
[1744351838833,0.05939924,117.12,117.09,10.68467274]
[1744351839129,0.05939924,117.12,117.11,8.5447]
[1744351841137,0.05939924,117.12,117.11,17.35760172]
[1744351841736,0.05939924,117.12,117.11,8.81290172]
[1744351842438,33.04,117.14,117.11,31.77018834]
[1744351842629,33.04,117.17,117.12,17.23204993]
[1744351842829,33.04,117.17,117.12,8.81290172]
[1744351843030,33.04,117.17,117.13,27.85285076]
[1744351843232,2.0959,117.19,117.13,27.85285076]
[1744351843233,4.2756,117.2,117.15,10.62421614]
[1744351843433,33.04,117.21,117.16,8.81290172]
[1744351843634,0.05968705,117.19,117.17,8.54]
[1744351844536,0.05968705,117.19,117.16,0.05458861]
[1744351844740,0.05968705,117.19,117.18,8.80095362]
[1744351845238,0.05968705,117.19,117.18,17.34055362]
[1744351845533,0.05968705,117.19,117.18,8.80095362]
[1744351845733,0.05968705,117.19,117.16,0.05458861]
[1744351846136,0.05968705,117.19,117.16,8.59518861]
[1744351846632,0.05968705,117.19,117.16,0.05458861]
[1744351847133,8.705e-05,117.19,117.18,10.62421614]
[1744351847339,10.62421614,117.28,117.18,22.92959263]
[1744351847538,10.62421614,117.28,117.19,8.40019615]
[1744351847839,8.5345,117.25,117.21,8.5374]
[1744351848042,8.5345,117.25,117.2,8.78529263]
[1744351848043,33.04,117.24,117.2,8.78529263]
[1744351848238,33.04,117.25,117.21,8.78529263]
[1744351848542,0.05853871,117.23,117.21,8.83989993]
[1744351849041,0.05853871,117.23,117.21,0.0546073]
[1744351849341,0.05853871,117.23,117.22,8.5361]
[1744351850343,0.05853871,117.23,117.22,19.16031614]
[1744351850841,0.05853871,117.23,117.22,27.91815387]
[1744351851139,0.05853871,117.23,117.22,17.29393773]
[1744351851732,0.05853871,117.23,117.22,8.5361]
[1744351852039,0.05853871,117.23,117.21,8.5918073]
[1744351852242,0.05853871,117.23,117.21,0.0546073]
[1744351853244,0.05853871,117.23,117.21,8.5919073]
[1744351855039,8.59473871,117.23,117.21,0.0546073]
[1744351857045,41.61473871,117.23,117.21,0.0546073]
[1744351857343,33.07853871,117.23,117.16,10.62421614]
[1744351857643,33.07853871,117.23,117.16,8.5407]
[1744351858042,33.07853871,117.23,117.14,43.64421614]
[1744351858237,33.02,117.23,117.14,43.64421614]
[1744351858543,0.05375059,117.2,117.17,0.05773811]
[1744351858738,33.07375059,117.2,117.17,0.05773811]
[1744351859540,41.61235059,117.2,117.17,0.05773811]
[1744351860437,43.69796673,117.2,117.11,33.02]
[1744351860739,10.62421614,117.16,117.08,10.62421614]
[1744351861040,33.02,117.15,117.09,8.5461]
[1744351861236,33.02,117.15,117.07,6.7336]
[1744351861433,8.5447,117.12,117.07,4.5103]
[1744351861643,41.61933591,117.12,117.1,0.06325245]
[1744351862649,8.5447,117.11,117.1,0.06325245]
[1744351863047,33.07463591,117.12,117.05,111.96941967]
[1744351863244,8.5459,117.1,117.07,8.5475]
[1744351863847,8.545,117.11,117.07,8.5475]
[1744351864147,33.02,117.12,117.08,8.60571583]
[1744351864148,0.0613145,117.1,117.08,8.60571583]
[1744351864448,0.0613145,117.1,117.08,0.05941583]
[1744351865041,0.0613145,117.1,117.09,8.5462]
[1744351867147,33.44,117.13,117.08,33.49941583]
[1744351867544,33.44,117.13,117.09,27.88357092]
[1744351867847,33.44,117.13,117.09,30.18687092]
[1744351868048,33.44,117.13,117.09,21.42582869]
[1744351868442,2.1074,117.19,117.09,21.42582869]
[1744351868443,35.5474,117.19,117.12,17.00552869]
[1744351868954,8.5407,117.17,117.14,8.5425]
[1744351869751,0.05813687,117.17,117.14,8.59625373]
[1744351870351,8.59853687,117.17,117.14,0.05375373]
[1744351870851,41.9815,117.16,117.14,0.05375373]
[1744351871349,33.44,117.16,117.14,0.05375373]
[1744351872955,0.05813687,117.17,117.15,8.5418]
[1744351873147,0.05813687,117.17,117.14,0.05375373]
[1744351873950,8.59893687,117.17,117.14,8.59595373]
[1744351874453,0.05813687,117.17,117.14,8.59595373]
[1744351874952,0.05813687,117.17,117.15,8.5417]
[1744351875751,0.05813687,117.17,117.14,8.59595373]
[1744351876154,8.59853687,117.17,117.14,8.59595373]
[1744351878153,8.5418,117.15,117.14,0.05375373]
[1744351878456,33.44,117.16,117.09,4.4203]
[1744351878754,8.5439,117.13,117.09,8.5456]
[1744351878952,41.9839,117.13,117.08,33.44]
[1744351879152,41.9839,117.13,117.07,17.00552869]
[1744351879455,41.9839,117.13,117.08,8.77631966]
[1744351879654,0.05671974,117.11,117.09,0.05810164]
[1744351879848,0.05671974,117.11,117.09,8.60400164]
[1744351880357,8.60171974,117.11,117.09,0.05810164]
[1744351880855,8.5455,117.1,117.09,0.05810164]
[1744351881555,41.9855,117.1,117.09,0.05810164]
[1744351883855,8.5477,117.07,117.04,2.2488]
[1744351884051,41.9877,117.07,117.03,14.92913]
[1744351884446,33.44,117.07,117.04,8.5495]
[1744351884651,33.44,117.07,117.03,14.92913]
[1744351884953,33.44,117.07,117.04,0.05704521]
[1744351885153,0.06229257,117.06,117.05,8.5491]
[1744351885757,0.06229257,117.06,117.04,8.60664521]
[1744351885952,0.06229257,117.06,117.04,0.05704521]
[1744351888766,0.06229257,117.06,117.05,8.5491]
[1744351889060,0.06229257,117.06,117.04,0.05704521]
[1744351889257,0.06229257,117.06,117.04,8.60644521]
[1744351890762,0.06229257,117.06,117.05,8.5491]
[1744351894169,0.06229257,117.06,117.05,19.17939292]
[1744351895266,0.06229257,117.06,117.05,27.9462766]
[1744351896569,0.06229257,117.06,117.05,17.31598368]
[1744351896773,0.06229257,117.06,117.04,8.60654521]
[1744351897069,8.61079257,117.06,117.04,0.05704521]
[1744351897269,0.06229257,117.06,117.04,0.05704521]
[1744351898772,0.06229257,117.06,117.04,8.60664521]
[1744351899274,0.06229257,117.06,117.05,8.5491]
[1744351899864,0.06229257,117.06,117.05,17.34301308]
[1744351900272,0.06229257,117.06,117.05,25.74450909]
[1744351900585,0.06229257,117.06,117.05,25.74891307]
[1744351901167,0.06229257,117.06,117.05,17.34301308]
[1744351901467,0.06229257,117.06,117.05,25.75765319]
[1744351901674,0.06229257,117.06,117.05,25.75753742]
[1744351902365,0.06229257,117.06,117.05,25.76325025]
[1744351903971,0.06229257,117.06,117.05,29.6807359]
[1744351904173,0.06229257,117.06,117.05,17.34301308]
[1744351904373,0.06229257,117.06,117.05,25.76977444]
[1744351904578,0.06229257,117.06,117.05,29.68990593]
[1744351905274,0.06229257,117.06,117.05,29.69590669]
[1744351906178,0.06229257,117.06,117.05,29.70031324]
[1744351907872,0.06229257,117.06,117.05,17.34301308]
[1744351908079,0.06229257,117.06,117.05,29.70996074]
[1744351911678,0.06229257,117.06,117.05,29.71016198]
[1744351913378,0.06229257,117.06,117.05,29.7114886]
[1744351913779,33.7,117.1,117.08,8.5469]
[1744351914887,33.76407572,117.1,117.08,8.60251989]
[1744351915594,33.76407572,117.1,117.09,8.83739695]
[1744351916785,42.30957572,117.1,117.09,8.83739695]
[1744351916985,42.30957572,117.1,117.08,0.05561989]
[1744351918389,42.30957572,117.1,117.09,8.84064116]
[1744351918586,33.76407572,117.1,117.09,8.84064116]
[1744351919288,33.76407572,117.1,117.09,17.38684116]
[1744351919483,33.76407572,117.1,117.09,8.84064116]
[1744351920087,0.06407572,117.1,117.09,8.84064116]
[1744351920288,0.06407572,117.1,117.09,17.29479459]
[1744351920486,0.06407572,117.1,117.09,29.77071243]
[1744351920789,0.06407572,117.1,117.09,21.22451243]
[1744351920992,0.06407572,117.1,117.09,17.29479459]
[1744351921185,8.60957572,117.1,117.09,8.84064116]
[1744351921489,0.06407572,117.1,117.09,21.22948066]
[1744351922090,0.06407572,117.1,117.09,21.22888808]
[1744351922786,0.06407572,117.1,117.09,29.77508808]
[1744351924388,0.06407572,117.1,117.09,29.7843366]
[1744351927100,0.06407572,117.1,117.09,29.7830132]
[1744351927996,0.06407572,117.1,117.09,21.23744478]
[1744351928595,0.06407572,117.1,117.09,29.78364478]
[1744351929697,0.06407572,117.1,117.09,21.23744478]
[1744351930495,0.06407572,117.1,117.09,1.91504116]
[1744351930694,8.5462,117.09,117.08,0.05561989]
[1744351934102,0.06407572,117.1,117.08,0.05561989]
[1744351935104,8.60987572,117.1,117.08,0.05561989]
[1744351936401,0.06407572,117.1,117.08,0.05561989]
[1744351936708,0.06407572,117.1,117.09,8.46405106]
[1744351937107,0.06407572,117.1,117.09,17.01025106]
[1744351938005,0.06407572,117.1,117.09,20.94484485]
[1744351938914,0.06407572,117.1,117.09,20.94662937]
[1744351940310,33.04,117.14,117.09,12.40042937]
[1744351940613,33.04,117.14,117.1,12.39930305]
[1744351940807,33.04,117.14,117.11,8.46412375]
[1744351941009,41.5828,117.14,117.08,10.63029292]
[1744351941207,41.5828,117.14,117.09,12.39933271]
[1744351941416,41.5828,117.14,117.1,12.39933271]
[1744351941711,0.06221304,117.13,117.11,8.46425017]
[1744351941912,0.06221304,117.13,117.1,0.05972579]
[1744351942111,0.06221304,117.13,117.11,8.4631136]
[1744351942309,0.06221304,117.13,117.1,0.05972579]
[1744351942511,0.06221304,117.13,117.11,17.00761175]
[1744351942708,0.06221304,117.13,117.1,0.05972579]
[1744351943220,8.5444,117.12,117.11,8.71744463]
[1744351943513,0.06221304,117.13,117.11,17.1825972]
[1744351943714,0.06221304,117.13,117.1,0.05972579]
[1744351943910,0.06221304,117.13,117.11,17.00929577]
[1744351944112,0.06221304,117.13,117.1,10.69001871]
[1744351945316,0.06221304,117.13,117.11,17.17999678]
[1744351945514,0.06221304,117.13,117.11,8.71657104]
[1744351945713,0.06221304,117.13,117.12,17.26057104]
[1744351945915,0.06221304,117.13,117.12,25.71954614]
[1744351947309,0.06221304,117.13,117.12,29.65011318]
[1744351948113,0.06221304,117.13,117.12,29.64424759]
[1744351948417,33.02,117.16,117.14,8.5425]
[1744351948717,33.02,117.16,117.12,19.34686396]
[1744351948917,33.02,117.19,117.14,8.542]
[1744351949317,8.5405,117.17,117.14,8.542]
[1744351949715,8.60301906,117.17,117.14,8.5959493]
[1744351950615,0.06251906,117.17,117.14,0.0539493]
[1744351950819,33.02,117.16,117.14,0.0539493]
[1744351951922,8.5418,117.15,117.14,0.0539493]
[1744351954918,8.5418,117.15,117.08,10.63029292]
[1744351954919,8.5436,117.13,117.1,8.5451]
[1744351955218,32.86,117.12,117.06,43.49029292]
[1744351955410,41.4052,117.11,117.08,8.5465]
[1744351955614,41.4052,117.11,117.09,8.46124534]
[1744351955816,32.86,117.11,117.09,8.71454319]
[1744351956009,32.91467664,117.11,117.09,0.05722371]
[1744351957324,8.5455,117.1,117.09,0.05722371]
[1744351961529,8.5476,117.08,117.04,8.5497]
[1744351961726,32.86,117.08,117.05,12.39969201]
[1744351961921,32.86,117.08,117.06,12.39965823]
[1744351962121,32.86,117.08,117.07,8.46442478]
[1744351962322,32.86,117.11,117.07,21.11550727]
[1744351962626,32.86,117.11,117.07,8.71670892]
[1744351962925,32.86,117.11,117.08,8.60273702]
[1744351962926,0.06062584,117.1,117.08,8.60273702]
[1744351963618,0.06062584,117.1,117.08,0.05613702]
[1744351964220,0.06062584,117.1,117.08,8.60273702]
[1744351965823,0.06062584,117.1,117.08,0.05613702]
[1744351966323,8.5462,117.09,117.08,0.05613702]
[1744351967023,8.60642584,117.1,117.08,0.05613702]
[1744351968629,0.06062584,117.1,117.08,0.05613702]
[1744351969030,0.06062584,117.1,117.08,8.60263702]
[1744351970731,0.06062584,117.1,117.09,8.71158515]
[1744351971228,0.06062584,117.1,117.08,8.60263702]
[1744351972930,0.06062584,117.1,117.09,8.71202016]
[1744351973330,0.06062584,117.1,117.09,25.71582459]
[1744351973538,32.86,117.11,117.09,27.90220332]
[1744351973832,32.86,117.11,117.1,17.16962459]
[1744351974234,32.86,117.11,117.1,25.71512459]
[1744351975734,0.05731515,117.12,117.11,8.5447]
[1744351975933,0.05731515,117.12,117.11,17.25672016]
[1744351976234,0.05731515,117.12,117.11,8.71202016]
[1744351976738,8.60131515,117.12,117.11,8.71202016]
[1744351977330,8.60131515,117.12,117.09,8.5458]
[1744351977536,41.4049,117.11,117.08,8.60283702]
[1744351977736,41.4049,117.11,117.09,12.38864159]
[1744351977943,8.5458,117.1,117.08,0.05613702]
[1744351978235,8.5458,117.1,117.09,8.45763193]
[1744351978635,8.5458,117.1,117.09,8.46085941]
[1744351978836,8.5458,117.1,117.09,8.71364233]
[1744351979344,8.5462,117.09,117.08,0.05613702]
[1744351983135,32.86,117.11,117.08,0.05613702]
[1744351983844,8.5462,117.09,117.08,0.05613702]
[1744351985344,32.86,117.11,117.08,0.05613702]
[1744351986046,32.86,117.11,117.09,8.45752974]
[1744351986248,32.86,117.11,117.08,0.05613702]
[1744351986544,32.86,117.11,117.09,17.00346763]
[1744351986742,32.86,117.11,117.09,8.5458]
[1744351987351,0.05731515,117.12,117.1,12.38661803]
[1744351987546,0.05731515,117.12,117.1,4.4494]
[1744351987741,8.60181515,117.12,117.1,4.4494]
[1744351987942,0.05731515,117.12,117.08,0.05613702]
[1744351988248,0.05731515,117.12,117.09,8.45860071]
[1744351988447,0.05731515,117.12,117.08,10.67920648]
[1744351988738,32.88,117.14,117.1,10.62306946]
[1744351988944,32.88,117.14,117.11,8.45722284]
[1744351989136,709.28,117.18,117.1,10.62306946]
[1744351989342,32.88,117.18,117.11,12.387455]
[1744351989543,41.4202,117.18,117.12,12.387455]
[1744351989740,32.88,117.18,117.13,12.44163037]
[1744351989944,0.06107211,117.16,117.13,0.05417537]
[1744351990145,0.06107211,117.16,117.13,8.59697537]
[1744351990347,0.06107211,117.16,117.13,0.05417537]
[1744351990545,0.06107211,117.16,117.14,8.5425]
[1744351991155,0.06107211,117.16,117.15,8.5418]
[1744351991452,0.06107211,117.16,117.13,0.05417537]
[1744351992458,34.36,117.21,117.14,22.99331067]
[1744351992650,34.36,117.21,117.15,12.37024121]
[1744351992955,34.36,117.21,117.18,8.5396]
[1744351993155,34.36,117.21,117.14,44.98306946]
[1744351993349,34.36,117.21,117.15,12.36642929]
[1744351993545,0.05816697,117.19,117.16,14.62308699]
[1744351993745,0.05816697,117.19,117.16,10.80498275]
[1744351993955,0.05816697,117.19,117.17,8.5399]
[1744351994162,0.05816697,117.19,117.16,8.60568275]
[1744351994358,0.05816697,117.19,117.16,0.06074405]
[1744351995463,0.05816697,117.19,117.16,8.60134405]
[1744351995664,0.05816697,117.19,117.16,0.06074405]
[1744351996563,8.5404,117.17,117.16,0.06074405]
[1744351997962,8.5431,117.14,117.12,2.3088]
[1744351999171,8.5433,117.13,117.12,0.05703209]
[1744352000369,8.6048353,117.14,117.12,0.05703209]
[1744352002071,8.5433,117.13,117.12,0.05703209]
[1744352002673,8.5455,117.1,117.08,4.5731]
[1744352002968,42.8855,117.1,117.08,2.3049]
[1744352003767,34.34,117.1,117.08,2.3049]
[1744352003973,34.39916123,117.1,117.08,10.91731144]
[1744352004369,34.39916123,117.1,117.08,2.37041144]
[1744352005370,0.05916123,117.1,117.08,2.37041144]
[1744352005774,0.05916123,117.1,117.08,10.91671144]
[1744352006072,0.05916123,117.1,117.08,2.37041144]
[1744352006278,34.34,117.13,117.1,8.5453]
[1744352006974,34.34,117.13,117.08,2.37041144]
[1744352007171,34.34,117.13,117.09,31.536572]
[1744352007367,0.05873541,117.12,117.1,12.363019]
[1744352007678,8.5422,117.15,117.11,8.54979167]
[1744352007877,34.34,117.16,117.11,8.54979167]
[1744352008384,42.8815,117.16,117.12,8.5434]
[1744352008771,0.05488423,117.15,117.13,0.05641153]
[1744352009373,34.34,117.21,117.13,10.67948099]
[1744352009569,34.34,117.21,117.14,2.0974]
[1744352009775,8.5393,117.19,117.14,2.0974]
[1744352009980,8.5393,117.19,117.15,8.5415]
[1744352010177,8.5393,117.19,117.14,2.0974]
[1744352010483,35.82,117.29,117.18,10.62306946]
[1744352010682,35.82,117.29,117.22,8.5362]
[1744352011077,46.44306946,117.29,117.2,12.72046946]
[1744352011274,8.5347,117.25,117.2,12.72046946]
[1744352011474,8.5347,117.25,117.2,2.0974]
[1744352011675,35.82,117.29,117.21,8.47059485]
[1744352011882,46.44306946,117.29,117.2,12.72046946]
[1744352012078,46.44306946,117.29,117.24,0.05459197]
[1744352012381,8.5336,117.27,117.24,0.05459197]
[1744352012574,46.44306946,117.29,117.24,0.05459197]
[1744352013176,8.5345,117.25,117.24,0.05459197]
[1744352013482,47.6745,117.25,117.24,0.05459197]
[1744352013680,8.5357,117.24,117.2,2.0974]
[1744352014683,0.05459197,117.23,117.21,0.0593421]
[1744352016085,8.5367,117.22,117.21,0.0593421]
[1744352016477,10.67766143,117.23,117.14,4.2411]
[1744352016783,39.12,117.22,117.14,4.2411]
[1744352016980,8.539,117.19,117.14,12.7834]
[1744352017280,39.12,117.22,117.14,4.2411]
[1744352017481,0.05515193,117.18,117.15,0.06562091]
[1744352017681,39.17515193,117.18,117.15,0.06562091]
[1744352018181,0.05515193,117.18,117.15,0.06562091]
[1744352018877,0.05515193,117.18,117.16,8.5411]
[1744352019079,0.05515193,117.18,117.15,0.06562091]
[1744352020685,0.05515193,117.18,117.15,8.60732091]
[1744352021487,39.12,117.2,117.15,0.06562091]
[1744352021986,39.12,117.2,117.17,8.5399]
[1744352022191,39.12,117.2,117.15,0.06562091]
[1744352022384,47.6587,117.2,117.15,8.60722091]
[1744352022582,0.05398537,117.19,117.15,0.06562091]
[1744352023076,0.05398537,117.19,117.16,8.5407]
[1744352023888,8.59288537,117.19,117.15,8.60722091]
[1744352024386,0.05398537,117.19,117.16,8.5409]
[1744352025090,8.59298537,117.19,117.15,0.06562091]
[1744352025284,0.05398537,117.19,117.15,0.06562091]
[1744352025789,0.05398537,117.19,117.16,8.5407]
[1744352026789,0.05398537,117.19,117.15,0.06562091]
[1744352026990,8.59288537,117.19,117.15,0.06562091]
[1744352028287,8.59288537,117.19,117.16,8.5408]
[1744352029092,8.5401,117.18,117.15,0.06562091]
[1744352029293,0.05398537,117.19,117.15,0.06562091]
[1744352029594,8.5408,117.17,117.15,0.06562091]
[1744352030388,0.05398537,117.19,117.15,0.06562091]
[1744352031092,10.62306946,117.18,117.11,2.2145]
[1744352031391,10.95576946,117.18,117.08,2.121]
[1744352031593,8.5431,117.14,117.09,12.35460501]
[1744352031889,47.6631,117.14,117.1,25.52320595]
[1744352032189,0.05381046,117.13,117.11,8.60598609]
[1744352033997,8.59711046,117.13,117.11,0.06128609]
[1744352034197,0.05381046,117.13,117.11,0.06128609]
[1744352034591,8.59751046,117.13,117.11,0.06128609]
[1744352038098,8.544,117.12,117.11,0.06128609]
[1744352038598,0.05381046,117.13,117.05,2.0991]
[1744352038795,49.74306946,117.14,117.06,8.43797968]
[1744352038995,49.74306946,117.14,117.06,8.54837727]
[1744352039196,0.7821,117.13,117.06,8.54837727]
[1744352039396,10.62306946,117.12,117.06,8.54837727]
[1744352039597,10.62306946,117.12,117.06,17.09627727]
[1744352039799,0.06193053,117.1,117.08,0.06140811]
[1744352039991,39.20193053,117.1,117.08,0.06140811]
[1744352040498,8.5462,117.09,117.08,0.06140811]
[1744352040899,47.74773053,117.1,117.08,0.06140811]
[1744352042401,8.5462,117.09,117.08,0.06140811]
[1744352044805,47.74773053,117.1,117.08,0.06140811]
[1744352045504,8.5462,117.09,117.08,0.06140811]
[1744352046099,47.74763053,117.1,117.08,0.06140811]
[1744352046602,39.20193053,117.1,117.08,0.06140811]
[1744352047100,47.74773053,117.1,117.08,0.06140811]
[1744352047494,39.20193053,117.1,117.08,0.06140811]
[1744352047700,8.5462,117.09,117.08,0.06140811]
[1744352051107,8.5485,117.06,117.03,14.92913]
[1744352051702,49.76306946,117.1,117.03,14.92913]
[1744352052104,49.76306946,117.1,117.04,8.5492]
[1744352052402,8.60550181,117.08,117.05,0.05845675]
[1744352053108,8.5478,117.07,117.05,0.05845675]
[1744352053501,0.05810181,117.08,117.05,0.05845675]
[1744352054407,8.5481,117.07,117.05,0.05845675]
[1744352055405,0.05810181,117.08,117.05,0.05845675]
[1744352055406,8.5484,117.06,117.05,0.05845675]
[1744352057911,48.1484,117.06,117.05,0.05845675]
[1744352058118,8.5498,117.04,117.03,14.92913]
[1744352058414,39.6,117.06,117.03,14.92913]
[1744352058911,8.5495,117.05,117.03,14.92913]
[1744352059214,8.61154904,117.05,117.03,14.98692241]
[1744352060511,0.06204904,117.05,117.03,14.98692241]
[1744352060913,0.06204904,117.05,117.03,23.53712241]
[1744352061312,0.06204904,117.05,117.03,14.98692241]
[1744352062315,8.5498,117.04,117.03,14.98692241]
[1744352067823,10.62306946,117.04,116.96,11.47041738]
[1744352068023,10.62306946,117.04,116.96,15.93061738]
[1744352068421,8.5535,116.99,116.96,20.02581738]
[1744352069022,0.06238363,116.99,116.97,8.5547]
[1744352071624,0.06238363,116.99,116.96,0.06509265]
[1744352071922,39.62,117.03,116.98,10.62306946]
[1744352072921,0.06306293,117.02,117.0,8.5526]
[1744352073323,0.06306293,117.02,116.99,0.06444457]
[1744352073725,8.61476293,117.02,116.99,8.61764457]
[1744352077630,0.06306293,117.02,117.0,8.5526]
[1744352079132,0.06306293,117.02,116.99,0.06444457]
[1744352080033,0.06306293,117.02,117.0,12.41510497]
[1744352080235,0.06306293,117.02,117.01,8.4749004]
[1744352080534,0.06306293,117.02,117.01,17.06270134]
[1744352081240,0.06306293,117.02,117.0,19.91228197]
[1744352084238,0.06306293,117.02,117.0,13.1028]
[1744352085639,8.61436293,117.02,117.01,8.60308793]
[1744352085839,15.4238449,117.02,117.01,8.60308793]
[1744352086037,6.8725449,117.02,116.99,0.06444457]
[1744352086243,8.5528,117.0,116.99,0.06444457]
[1744352088052,8.5522,117.01,116.99,0.06444457]
[1744352093249,8.5528,117.0,116.99,0.06444457]
[1744352093448,6.8725449,117.02,116.99,17.17106523]
[1744352093748,0.06306293,117.02,116.99,8.67331308]
[1744352094044,0.06306293,117.02,116.99,0.06444457]
[1744352094248,0.06306293,117.02,117.0,8.4952987]
[1744352094549,0.06306293,117.02,116.99,0.06444457]
[1744352094749,0.06306293,117.02,117.0,8.49520541]
[1744352095049,8.61436293,117.02,116.99,8.61754457]
[1744352095250,0.06306293,117.02,117.0,17.10283543]
[1744352095449,6.8725449,117.02,117.0,8.60767001]
[1744352095950,8.5525,117.01,116.99,0.06444457]
[1744352096145,6.8725449,117.02,116.99,0.06444457]
[1744352096648,15.36228197,117.0,116.99,0.06444457]
[1744352100251,6.80948197,117.0,116.94,13.74401738]
[1744352100451,6.80948197,116.97,116.95,8.50692307]
[1744352100750,15.36488197,116.97,116.92,6.80948197]
[1744352101050,15.36488197,116.97,116.93,12.45839379]
[1744352101249,8.5561,116.96,116.94,21.07349665]
[1744352101446,6.80948197,116.95,116.94,8.67609384]
[1744352101750,45.66948197,116.95,116.94,17.18163564]
[1744352102049,38.86,116.95,116.94,17.18163564]
[1744352102251,35.3945,116.95,116.94,27.94551276]
[1744352102445,35.3945,116.95,116.94,17.18163564]
[1744352102642,42.20398197,116.95,116.94,17.18163564]
[1744352103150,35.3945,116.95,116.94,17.18163564]
[1744352103455,35.3945,116.95,116.94,8.67609384]
[1744352103641,6.87037921,116.96,116.94,8.67609384]
[1744352103846,44.22948197,117.01,116.95,6.80948197]
[1744352104151,44.22948197,117.01,116.96,14.5977683]
[1744352104350,44.22948197,117.01,116.97,17.11087411]
[1744352104547,37.42,117.01,116.97,8.61127184]
[1744352104748,6.80948197,117.0,116.96,2.1445]
[1744352104947,37.42,117.01,116.97,19.25880297]
[1744352105148,0.05871679,116.99,116.98,17.10718433]
[1744352105352,0.05871679,116.99,116.98,25.66088433]
[1744352106553,0.05871679,116.99,116.98,29.61356875]
[1744352109256,37.42,117.01,117.0,8.5528]
[1744352109452,37.42,117.01,117.0,17.05103282]
[1744352109653,37.42,117.01,117.0,25.65998433]
[1744352109853,37.42,117.01,117.0,29.61543426]
[1744352110062,37.42,117.01,117.0,25.65998433]
[1744352110356,0.0537826,117.02,117.01,8.552]
[1744352110554,0.0537826,117.02,117.01,23.2202389]
[1744352111257,0.0537826,117.02,117.01,31.82919041]
[1744352113359,0.0537826,117.02,117.01,31.82768369]
[1744352113959,0.0537826,117.02,117.01,21.06088369]
[1744352114266,37.4737826,117.02,117.01,8.60895151]
[1744352114458,46.0257826,117.02,117.0,0.064002]
[1744352115261,8.552,117.01,117.0,0.064002]
[1744352115460,37.4737826,117.02,117.0,8.57374918]
[1744352115661,37.4737826,117.02,117.0,0.064002]
[1744352116264,46.0254826,117.02,117.0,0.064002]
[1744352117667,37.4737826,117.02,117.0,8.616702]
[1744352118167,37.4737826,117.02,117.01,17.127041]
[1744352118367,37.4737826,117.02,117.01,21.08160264]
[1744352118566,37.4737826,117.02,117.01,29.63360264]
[1744352118964,0.0537826,117.02,117.01,29.63360264]
[1744352119271,37.42,117.08,117.01,31.72558457]
[1744352119470,37.42,117.08,117.03,10.64398193]
[1744352119663,37.42,117.08,117.04,12.46245343]
[1744352119863,37.42,117.08,117.05,8.49654452]
[1744352120064,37.42,117.08,117.03,10.64398193]
[1744352120271,37.47764169,117.08,117.05,0.05649807]
[1744352120867,37.47764169,117.08,117.06,8.5482]
[1744352121670,37.47764169,117.08,117.07,8.5477]
[1744352121876,0.05764169,117.08,117.07,8.5477]
[1744352124475,0.05764169,117.08,117.05,0.05649807]
[1744352124775,0.05764169,117.08,117.06,17.01967531]
[1744352124974,0.05764169,117.08,117.05,0.05649807]
[1744352125176,0.05764169,117.08,117.06,17.05731612]
[1744352125467,0.05764169,117.08,117.06,8.58476773]
[1744352125673,0.05764169,117.08,117.06,8.5479]
[1744352125976,0.05764169,117.08,117.05,0.05649807]
[1744352126176,0.05764169,117.08,117.06,8.5484]
[1744352126379,0.05764169,117.08,117.05,0.05649807]
[1744352126778,0.05764169,117.08,117.06,8.548]
[1744352128978,0.05764169,117.08,117.05,0.05649807]
[1744352129483,37.4,117.07,117.05,0.05649807]
[1744352129674,48.04398193,117.07,117.05,0.05649807]
[1744352129870,37.4,117.07,117.05,0.05649807]
[1744352131282,45.948,117.07,117.05,0.05649807]